fUSD/lending_fUSD_20260121
["ID","MTS","AMOUNT","RATE_DAILY","PERIOD"]
[402929284,1768989039254,-332.0,0.00016809,2]
[402929285,1768989039264,-357.8195049,0.00016813,2]
[402929286,1768989039274,-379.08023588,0.00016819,2]
[402929287,1768989039284,-150.00231856,0.00016825,2]
[402929288,1768989039293,-3122.0,0.00016834,2]
[402929289,1768989039304,-510.0,0.00016843,2]
[402929290,1768989039313,-165.9,0.0001686,2]
[402929291,1768989039322,-270.86,0.00016867,2]
[402929292,1768989039332,-500.0,0.00016876,2]
[402929293,1768989039342,-1632.0,0.00016876,2]
[402929294,1768989039353,-11326.76144644,0.00016891,2]
[402929295,1768989039363,-293.62,0.00016897,2]
[402929296,1768989039373,-502.40800316,0.00016902,2]
[402929297,1768989039383,-500.0,0.00016902,2]
[402929298,1768989039393,-500.0,0.00016902,2]
[402929299,1768989039403,-500.0,0.00016902,2]
[402929300,1768989039412,-509.68083814,0.00016902,2]
[402929301,1768989039421,-500.0,0.00016902,2]
[402929302,1768989039431,-500.0,0.00016902,2]
[402929303,1768989039440,-500.0,0.00016902,2]
[402929304,1768989039450,-500.0,0.00016902,2]
[402929305,1768989039459,-500.0,0.00016902,2]
[402929306,1768989039469,-1557.0,0.0001691,2]
[402929307,1768989039479,-305.22366862,0.00016912,2]
[402929308,1768989039488,-150.99,0.00016922,2]
[402929309,1768989039498,-13988.61,0.00016922,2]
[402929310,1768989039511,-999.99,0.00016922,2]
[402929311,1768989039533,-9430.75,0.00016922,2]
[402929312,1768989039549,-9999.99,0.00016922,2]
[402929313,1768989039559,-9999.99,0.00016922,2]
[402929314,1768989039569,-27733.45,0.00016922,2]
[402929315,1768989039587,-4035.79,0.00016922,2]
[402929316,1768989039597,-1886.0,0.00016943,2]
[402929317,1768989039606,-3122.0,0.00016946,2]
[402929318,1768989039616,-1569.0,0.00016976,2]
[402929319,1768989039626,-357.8195049,0.00016994,2]
[402929320,1768989039635,-250.0,0.00017,2]
[402929321,1768989039645,-162.0,0.0001701,2]
[402929322,1768989039655,-11326.76144644,0.00017035,2]
[402929323,1768989039666,-379.08023588,0.00017035,2]
[402929324,1768989039675,-179.0,0.00017043,2]
[402929325,1768989039686,-170.10703562,0.00017073,2]
[402929326,1768989039696,-501.21925322,0.00017073,2]
[402929327,1768989039705,-173.35264112,0.00017073,2]
[402929328,1768989039714,-173.55705579,0.00017073,2]
[402929329,1768989039723,-501.12504577,0.00017073,2]
[402929330,1768989039733,-501.78111653,0.00017073,2]
[402929331,1768989039742,-167.87587796,0.00017073,2]
[402929332,1768989039752,-225.1354509,0.00017073,2]
[402929333,1768989039762,-502.32372239,0.00017073,2]
[402929334,1768989039771,-500.82647846,0.00017073,2]
[402929335,1768989039780,-500.59297437,0.00017073,2]
[402929336,1768989039790,-500.6119985,0.00017073,2]
[402929337,1768989039799,-501.73705507,0.00017073,2]
[402929338,1768989039810,-500.70403813,0.00017073,2]
[402929339,1768989039820,-500.0,0.00017073,2]
[402929340,1768989039830,-500.0,0.00017073,2]
[402929341,1768989039839,-166.23513753,0.00017073,2]
[402929342,1768989039849,-164.44455647,0.00017073,2]
[402929343,1768989039859,-500.6007219,0.00017073,2]
[402929344,1768989039869,-177.45121096,0.00017073,2]
[402929345,1768989039879,-501.62278833,0.00017073,2]
[402929346,1768989039889,-500.89562511,0.00017073,2]
[402929347,1768989039898,-500.0,0.00017073,2]
[402929348,1768989039908,-500.0,0.00017073,2]
[402929349,1768989039917,-175.58159846,0.00017073,2]
[402929350,1768989039927,-502.57997666,0.00017073,2]
[402929351,1768989039936,-501.05525398,0.00017073,2]
[402929352,1768989039946,-163.65383635,0.00017073,2]
[402929353,1768989039955,-500.67790697,0.00017073,2]
[402929354,1768989039964,-310.0,0.00017077,2]
[402929355,1768989039974,-540.77,0.00017093,2]
[402929356,1768989039983,-1279.0,0.0001711,2]
[402929357,1768989039992,-2452.0,0.00017133,2]
[402929358,1768989040003,-541.61,0.00017134,2]
[402929359,1768989040012,-270.86,0.00017141,2]
[402929360,1768989040023,-1775.0,0.00017143,2]
[402929361,1768989040033,-500.0,0.0001715,2]
[402929362,1768989040043,-193.68,0.00017158,2]
[402929363,1768989040052,-357.8195049,0.00017175,2]
[402929364,1768989040062,-1128.0,0.00017177,2]
[402929365,1768989040071,-11326.76144644,0.00017179,2]
[402929366,1768989040081,-307.0,0.0001721,2]
[402929367,1768989040090,-2452.0,0.00017223,2]
[402929368,1768989040099,-2452.0,0.00017236,2]
[402929369,1768989040108,-507.32904147,0.00017237,2]
[402929370,1768989040118,-4321.77131334,0.00017237,2]
[402929371,1768989040127,-2048.26176511,0.00017237,2]
[402929372,1768989040136,-263.0,0.00017244,2]
[402929373,1768989040145,-2452.0,0.0001725,2]
[402929374,1768989040154,-379.08023588,0.00017252,2]
[402929375,1768989040164,-1964.0,0.00017277,2]
[402929376,1768989040175,-1266.0,0.00017311,2]
[402929377,1768989040186,-11326.76144644,0.00017324,2]
[402929378,1768989040195,-957.0,0.00017344,2]
[402929379,1768989040204,-357.8195049,0.00017357,2]
[402929380,1768989040213,-500.79549494,0.00017373,2]
[402929381,1768989040224,-500.12560695,0.00017373,2]
[402929382,1768989040234,-500.15189466,0.00017373,2]
[402929383,1768989040243,-500.0,0.00017373,2]
[402929384,1768989040253,-500.0,0.00017373,2]
[402929385,1768989040262,-500.0,0.00017373,2]
[402929386,1768989040271,-500.0,0.00017373,2]
[402929387,1768989040279,-500.0,0.00017373,2]
[402929388,1768989040290,-257.99612183,0.00017373,2]
[402929389,1768989040300,-500.0,0.00017373,2]
[402929390,1768989040310,-500.0,0.00017373,2]
[402929391,1768989040319,-159.96427776,0.00017373,2]
[402929392,1768989040329,-150.0,0.00017373,2]
[402929393,1768989040339,-550.70733566,0.00017373,2]
[402929394,1768989040349,-500.0,0.00017373,2]
[402929395,1768989040358,-586.66357325,0.00017373,2]
[402929396,1768989040367,-1252.0,0.00017377,2]
[402929397,1768989040376,-500.0,0.00017424,2]
[402929398,1768989040386,-1662.69,0.00017428,2]
[402929399,1768989040395,-2452.0,0.00017464,2]
[402929400,1768989040404,-11326.76144644,0.00017468,2]
[402929401,1768989040414,-379.08023588,0.00017468,2]
[402929402,1768989040423,-2452.0,0.00017473,2]
[402929403,1768989040431,-2452.0,0.00017498,2]
[402929404,1768989040441,-165.9,0.00017528,2]
[402929405,1768989040450,-2452.0,0.00017534,2]
[402929406,1768989040460,-357.8195049,0.00017538,2]
[402929407,1768989040470,-178.12,0.00017542,2]
[402929408,1768989040480,-2452.0,0.0001756,2]
[402929409,1768989040491,-11326.76144644,0.00017612,2]
[402929410,1768989040501,-1000.0,0.00017621,2]
[402929411,1768989040514,-500.0,0.00017621,2]
[402929412,1768989040524,-2452.0,0.00017646,2]
[402929413,1768989040533,-379.08023588,0.00017684,2]
[402929414,1768989040543,-196.77793317,0.00017698,2]
[402929415,1768989040553,-357.8195049,0.00017719,2]
[402929416,1768989040563,-541.61,0.00017753,2]
[402929417,1768989040572,-23496.83297099,0.00017756,2]
[402929418,1768989040583,-11326.76144644,0.00017756,2]
[402929419,1768989040594,-2452.0,0.00017774,2]
[402929420,1768989040604,-2135.1202794,0.000178,3]
[402929421,1768989040614,-2452.0,0.0001785,2]
[402929422,1768989040624,-513.96107925,0.00017899,2]
[402929423,1768989040633,-1711.2931,0.000179,2]
[402929424,1768989040642,-23496.83297099,0.000179,2]
[402929425,1768989040653,-11326.76144644,0.000179,2]
[402929426,1768989040663,-379.08023588,0.000179,2]
[402929427,1768989040673,-357.8195049,0.000179,2]
[402929428,1768989040683,-500.0,0.000179,2]
[402929429,1768989040693,-500.0,0.000179,2]
[402929430,1768989040702,-500.0,0.000179,2]
[402929431,1768989040713,-500.0,0.000179,2]
[402929432,1768989040722,-500.0,0.000179,2]
[402929433,1768989040731,-500.0,0.000179,2]
[402929434,1768989040739,-500.0,0.000179,2]
[402929435,1768989040748,-500.0,0.000179,2]
[402929436,1768989040757,-500.0,0.000179,2]
[402929437,1768989040766,-500.0,0.000179,2]
[402929438,1768989040775,-500.0,0.000179,2]
[402929439,1768989040783,-500.0,0.000179,2]
[402929440,1768989040792,-500.0,0.000179,2]
[402929441,1768989040801,-500.0,0.000179,2]
[402929442,1768989040810,-500.0,0.000179,2]
[402929443,1768989040819,-500.0,0.000179,2]
[402929444,1768989040828,-500.0,0.000179,2]
[402929445,1768989040838,-500.0,0.000179,2]
[402929446,1768989040847,-500.0,0.000179,2]
[402929447,1768989040855,-500.0,0.000179,2]
[402929448,1768989040864,-500.0,0.000179,2]
[402929449,1768989040873,-500.0,0.000179,2]
[402929450,1768989040881,-500.0,0.000179,2]
[402929451,1768989040890,-500.0,0.000179,2]
[402929452,1768989040899,-500.0,0.000179,2]
[402929453,1768989040908,-500.0,0.000179,2]
[402929454,1768989040918,-500.0,0.000179,2]
[402929455,1768989040927,-500.0,0.000179,2]
[402929456,1768989040936,-500.0,0.000179,2]
[402929457,1768989040946,-500.0,0.000179,2]
[402929458,1768989040955,-7503.0,0.000179,2]
[402929459,1768989040964,-2452.0,0.00017901,2]
[402929460,1768989040973,-617.64963419,0.00017921,2]
[402929461,1768989040982,-1139.69507159,0.00017921,2]
[402929462,1768989040991,-1000.0,0.00017921,2]
[402929463,1768989041001,-561.91385606,0.00017921,2]
[402929464,1768989041010,-1000.0,0.00017921,2]
[402929465,1768989041019,-1000.0,0.00017921,2]
[402929466,1768989041028,-461.93263446,0.00017921,2]
[402929467,1768989041037,-242.41470896,0.00017921,2]
[402929468,1768989041046,-1000.0,0.00017921,2]
[402929469,1768989041055,-1000.0,0.0001797,2]
[402929470,1768989041064,-500.0,0.0001797,2]
[402929471,1768989041073,-1000.0,0.0001797,2]
[402929472,1768989041081,-694.631145,0.0001797,2]
[402929473,1768989041090,-1321.57411122,0.0001797,2]
[402929474,1768989041099,-15055.0,0.00017973,2]
[402929475,1768989041108,-30553.0,0.00017973,2]
[402929476,1768989041116,-150.0,0.00017973,2]
[402929477,1768989041126,-150.0,0.00017973,2]
[402929478,1768989041135,-305.22366862,0.0001799,2]
[402929479,1768989041144,-305.22366862,0.0001799,2]
[402929480,1768989041153,-3080.2390424,0.00017994,2]
[402929481,1768989041162,-300.0,0.00017999,2]
[402929482,1768989041171,-155.0,0.00017999,2]
[402929483,1768989041180,-300.0,0.00017999,2]
[402929484,1768989041190,-666.0,0.00017999,2]
[402929485,1768989041199,-1519622.72182737,0.00018,2]
[402929486,1768989041260,-957.09871288,0.00018,2]
[402929487,1768989041272,-1184.18960059,0.00018,2]
[402929488,1768989041283,-92990.07917741,0.00018,2]
[402929489,1768989041293,-9276.91065016,0.00018,2]
[402929490,1768989041305,-4119.45280101,0.00018,2]
[402929491,1768989041321,-948384.26218436,0.00018,2]
[402929492,1768989041334,-652.47824196,0.00018,2]
[402929493,1768989041348,-4618.87834935,0.00018,2]
[402929494,1768989041363,-1135.96567531,0.00018,2]
[402929495,1768989041376,-71455.50487635,0.00018,2]
[402929496,1768989041386,-20688.59088421,0.00018,2]
[402929512,1768989042821,-1916455.98249771,0.00018,2]
[402929514,1768989042830,-38790.27834376,0.00018,2]
[402929517,1768989042843,-219223.80615041,0.00018,2]
[402929519,1768989042852,-14831433.42811439,0.00018,2]
[402929520,1768989042863,-1931.51131072,0.00018,2]
[402929521,1768989042874,-4973.2154351,0.00018,2]
[402929522,1768989042912,-305.43973936,0.00018,2]
[402929523,1768989043070,-453.0,0.00018,2]
[402929524,1768989043123,-1832.67330149,0.00018,2]
[402929525,1768989043135,-384.996,0.00018,2]
[402929526,1768989043179,-37680.09579957,0.00018,2]
[402929527,1768989043190,-773.17359864,0.00018,2]
[402929541,1768989045696,-861.19274875,0.00018,2]
[402929543,1768989045708,-1219.5,0.00018,2]
[402929545,1768989045719,-24170.41313145,0.00018,2]
[402929547,1768989045730,-4406.05912286,0.00018,2]
[402929550,1768989045748,-533.9999989,0.00018,2]
[402929553,1768989045759,-423.74647872,0.00018,2]
[402929562,1768989045959,-2399.79631544,0.00018,2]
[402929563,1768989046013,-482.99504762,0.00018,2]
[402929564,1768989046025,-4345.56857318,0.00018,2]
[402929565,1768989046037,-3486.36204653,0.00018,2]
[402929567,1768989049102,508.13955484,0.00016,2]
[402929568,1768989092357,1096.669,0.00016172,2]
[402929569,1768989092469,165.724,0.00016172,2]
[402929570,1768989101358,263.14730428,0.00015965,2]
[402929571,1768989150884,357.81950491,0.00016402,2]
[402929572,1768989239580,11464.66729138,0.00016402,2]
[402929573,1768989261794,587.60488278,0.00016402,2]
[402929574,1768989312026,230.49185109,0.00016402,2]
[402929575,1768989375346,23496.83297099,0.00016402,2]
[402929576,1768989441935,313.09206684,0.00016402,2]
[402929594,1768989452328,153.66123406,0.00016402,2]
[402929595,1768989518432,164.0,0.00018,30]
[402929596,1768989550881,150.0,0.000227,120]
[402929597,1768989592652,153.66123405,0.00016402,2]
[402929598,1768989603269,1000.0,0.00015623,2]
[402929599,1768989686931,475.93,0.000227,120]
[402929600,1768989722922,153.66123405,0.00016402,2]
[402929601,1768989729680,273.95555845,0.00016402,2]
[402929602,1768989749895,10318.20056226,0.00016402,2]
[402929603,1768989761655,21147.1496739,0.00016402,2]
[402929604,1768989821863,3672.11,0.0001568,2]
[402929605,1768990029518,239.71111367,0.00016402,2]
[402929608,1768990079891,379.08023592,0.00016402,2]
[402929618,1768990231857,-404.53844161,0.0001648,2]
[402929619,1768990231870,-575.6218544,0.0001648,2]
[402929620,1768990232000,-799.75681923,0.0001648,2]
[402929621,1768990232012,-195.0,0.00016482,2]
[402929622,1768990232021,-250.0,0.00016484,2]
[402929623,1768990232030,-267.0,0.00016488,2]
[402929624,1768990232039,-550.0,0.00016488,2]
[402929625,1768990232048,-300.0,0.00016488,2]
[402929626,1768990232058,-1200.0,0.00016488,2]
[402929627,1768990232067,-513.0,0.00016489,2]
[402929629,1768990232077,-345.66266465,0.00016489,2]
[402929631,1768990232093,-154.33733535,0.00016489,2]
[402929632,1768990232102,-261.66226879,0.00016489,2]
[402929633,1768990232245,-238.33773121,0.00016489,2]
[402929634,1768990232255,-500.0,0.00016489,2]
[402929635,1768990232265,-500.0,0.00016489,2]
[402929636,1768990232274,-500.0,0.00016489,2]
[402929637,1768990232283,-456.87367007,0.00016489,2]
[402929638,1768990232292,-500.0,0.00016489,2]
[402929639,1768990232301,-500.0,0.00016489,2]
[402929640,1768990232311,-500.0,0.00016489,2]
[402929641,1768990232321,-500.0,0.00016489,2]
[402929642,1768990232331,-500.0,0.00016489,2]
[402929643,1768990232340,-500.0,0.00016489,2]
[402929644,1768990232349,-500.0,0.00016489,2]
[402929645,1768990232358,-500.0,0.00016489,2]
[402929646,1768990232367,-500.0,0.00016489,2]
[402929647,1768990232375,-500.0,0.00016489,2]
[402929648,1768990232384,-500.0,0.00016489,2]
[402929649,1768990232393,-500.0,0.00016489,2]
[402929650,1768990232402,-500.0,0.00016489,2]
[402929651,1768990232411,-500.0,0.00016489,2]
[402929652,1768990232420,-500.0,0.00016489,2]
[402929653,1768990232429,-500.0,0.00016489,2]
[402929654,1768990232437,-500.0,0.00016489,2]
[402929655,1768990232446,-645.96295461,0.00016489,2]
[402929656,1768990232455,-500.0,0.00016489,2]
[402929657,1768990232463,-500.0,0.00016489,2]
[402929658,1768990232472,-500.0,0.00016489,2]
[402929659,1768990232482,-500.0,0.00016489,2]
[402929660,1768990232492,-500.0,0.00016489,2]
[402929661,1768990232500,-500.0,0.00016489,2]
[402929662,1768990232510,-500.0,0.00016489,2]
[402929663,1768990232519,-500.0,0.00016489,2]
[402929664,1768990232528,-564.59629546,0.00016489,2]
[402929665,1768990232538,-500.0,0.00016489,2]
[402929666,1768990232547,-500.0,0.00016489,2]
[402929667,1768990232556,-500.0,0.00016489,2]
[402929668,1768990232564,-500.0,0.00016489,2]
[402929669,1768990232573,-500.0,0.00016489,2]
[402929670,1768990232583,-871.52,0.00016492,2]
[402929671,1768990232593,-200.0,0.00016492,2]
[402929672,1768990232602,-200.0,0.00016492,2]
[402929673,1768990232611,-500.0,0.00016492,2]
[402929674,1768990232620,-243.40767629,0.00016492,2]
[402929675,1768990232630,-200.0,0.00016492,2]
[402929676,1768990232639,-159.73187614,0.00016492,2]
[402929677,1768990232648,-151.0,0.00016492,2]
[402929678,1768990232658,-151.0,0.00016492,2]
[402929679,1768990232667,-151.0,0.00016492,2]
[402929680,1768990232676,-500.0,0.00016492,2]
[402929681,1768990232685,-151.0,0.00016492,2]
[402929682,1768990232694,-500.0,0.00016492,2]
[402929683,1768990232703,-500.0,0.00016492,2]
[402929684,1768990232712,-500.0,0.00016492,2]
[402929685,1768990232721,-151.12308869,0.00016492,2]
[402929686,1768990232730,-151.0,0.00016492,2]
[402929687,1768990232740,-151.0,0.00016492,2]
[402929688,1768990232749,-151.0,0.00016492,2]
[402929689,1768990232760,-151.0,0.00016492,2]
[402929690,1768990232769,-151.0,0.00016492,2]
[402929691,1768990232778,-151.0,0.00016492,2]
[402929692,1768990232788,-151.0,0.00016492,2]
[402929693,1768990232797,-151.0,0.00016492,2]
[402929694,1768990232807,-151.0,0.00016492,2]
[402929695,1768990232816,-151.0,0.00016492,2]
[402929696,1768990232825,-151.0,0.00016492,2]
[402929697,1768990232835,-151.0,0.00016492,2]
[402929698,1768990232844,-151.0,0.00016492,2]
[402929699,1768990232853,-151.0,0.00016492,2]
[402929700,1768990232863,-284.40432592,0.00016492,2]
[402929701,1768990232872,-500.0,0.00016492,2]
[402929702,1768990232882,-500.0,0.00016492,2]
[402929703,1768990232896,-500.0,0.00016492,2]
[402929704,1768990232906,-500.0,0.00016492,2]
[402929705,1768990232915,-1591.11,0.00016492,2]
[402929706,1768990232926,-980.82,0.00016492,2]
[402929707,1768990232937,-27733.45,0.00016492,2]
[402929708,1768990232947,-3345.94,0.00016492,2]
[402929709,1768990232957,-13988.61,0.00016492,2]
[402929710,1768990232967,-9999.99,0.00016492,2]
[402929711,1768990232976,-3433.33,0.00016492,2]
[402929712,1768990232986,-999.99,0.00016492,2]
[402929713,1768990232996,-9430.75,0.00016492,2]
[402929714,1768990233006,-9999.99,0.00016492,2]
[402929715,1768990233015,-4035.79,0.00016492,2]
[402929716,1768990233024,-513.95,0.00016492,2]
[402929717,1768990233034,-150.99,0.00016492,2]
[402929718,1768990233047,-1074.88818825,0.000165,2]
[402929719,1768990233056,-1482.651,0.000165,2]
[402929720,1768990233065,-167.796,0.000165,2]
[402929721,1768990233074,-27591.84523377,0.000165,2]
[402929722,1768990233084,-500.0,0.00016501,2]
[402929723,1768990233093,-500.0,0.00016501,2]
[402929724,1768990233102,-549.27828535,0.00016501,2]
[402929725,1768990233112,-500.0,0.00016501,2]
[402929726,1768990233122,-500.0,0.00016501,2]
[402929727,1768990233131,-500.0,0.00016501,2]
[402929728,1768990233141,-608.61424838,0.00016501,2]
[402929729,1768990233151,-500.0,0.00016501,2]
[402929730,1768990233160,-500.0,0.00016501,2]
[402929731,1768990233170,-455.72018722,0.00016501,2]
[402929732,1768990233179,-502.40800316,0.00016501,2]
[402929733,1768990233189,-500.0,0.00016501,2]
[402929734,1768990233198,-500.0,0.00016501,2]
[402929735,1768990233208,-500.0,0.00016501,2]
[402929736,1768990233217,-500.0,0.00016501,2]
[402929737,1768990233227,-500.0,0.00016501,2]
[402929738,1768990233236,-500.0,0.00016501,2]
[402929739,1768990233245,-500.0,0.00016501,2]
[402929740,1768990233254,-500.0,0.00016501,2]
[402929741,1768990233265,-510.38598485,0.00016501,2]
[402929742,1768990233275,-500.0,0.00016501,2]
[402929743,1768990233284,-500.0,0.00016501,2]
[402929744,1768990233294,-500.0,0.00016501,2]
[402929745,1768990233303,-500.0,0.00016501,2]
[402929746,1768990233312,-500.0,0.00016501,2]
[402929747,1768990233323,-500.0,0.00016501,2]
[402929748,1768990233334,-500.0,0.00016501,2]
[402929749,1768990233343,-500.0,0.00016501,2]
[402929750,1768990233353,-500.0,0.00016501,2]
[402929751,1768990233362,-198.58095138,0.00016501,2]
[402929752,1768990233371,-500.0,0.00016501,2]
[402929753,1768990233380,-500.0,0.00016501,2]
[402929754,1768990233390,-500.0,0.00016501,2]
[402929755,1768990233400,-318.85334381,0.00016501,2]
[402929756,1768990233409,-500.0,0.00016502,2]
[402929757,1768990233418,-177.13478141,0.00016568,2]
[402929758,1768990233428,-500.0,0.00016602,2]
[402929759,1768990233438,-500.0,0.00016602,2]
[402929760,1768990233448,-18838.77251899,0.00016603,2]
[402929761,1768990233460,-8717.24458101,0.00016603,2]
[402929762,1768990233470,-1000.0,0.00016603,2]
[402929763,1768990233479,-800.0,0.000167,2]
[402929764,1768990233489,-500.0,0.00016702,2]
[402929765,1768990233498,-500.0,0.00016702,2]
[402929766,1768990233507,-500.0,0.00016702,2]
[402929767,1768990233517,-500.0,0.00016702,2]
[402929768,1768990233526,-500.0,0.00016702,2]
[402929769,1768990233773,-500.0,0.00016702,2]
[402929770,1768990233783,-500.0,0.00016702,2]
[402929771,1768990233792,-500.0,0.00016702,2]
[402929772,1768990233801,-513.68541825,0.00016702,2]
[402929773,1768990233810,-500.0,0.00016702,2]
[402929774,1768990233820,-500.0,0.00016702,2]
[402929775,1768990233829,-500.0,0.00016702,2]
[402929776,1768990233838,-500.0,0.00016702,2]
[402929777,1768990233847,-871.52,0.00016766,2]
[402929778,1768990233856,-151.0,0.00016767,2]
[402929779,1768990233865,-151.0,0.00016767,2]
[402929780,1768990233874,-500.0,0.00016776,2]
[402929781,1768990233884,-6470.18116383,0.0001682,2]
[402929782,1768990233897,-150.00138053,0.00016825,2]
[402929783,1768990233906,-151.0,0.00016846,2]
[402929784,1768990233915,-151.0,0.00016846,2]
[402929785,1768990233924,-151.0,0.00016846,2]
[402929786,1768990233934,-151.0,0.00016846,2]
[402929787,1768990233943,-151.0,0.00016846,2]
[402929788,1768990233952,-151.0,0.00016846,2]
[402929789,1768990233964,-151.0,0.00016846,2]
[402929790,1768990233973,-151.0,0.00016846,2]
[402929791,1768990233982,-151.0,0.00016846,2]
[402929792,1768990233991,-151.0,0.00016846,2]
[402929793,1768990234000,-151.0,0.00016846,2]
[402929794,1768990234009,-151.0,0.00016846,2]
[402929795,1768990234019,-151.0,0.00016846,2]
[402929796,1768990234028,-151.0,0.00016846,2]
[402929797,1768990234037,-500.0,0.00016921,2]
[402929798,1768990234046,-500.0,0.00016921,2]
[402929799,1768990234055,-1049.0,0.00016946,2]
[402929800,1768990234064,-1491.51378067,0.0001698,2]
[402929801,1768990234076,-193.48621933,0.0001698,2]
[402929802,1768990234085,-1685.0,0.00017013,2]
[402929803,1768990234094,-871.52,0.0001704,2]
[402929804,1768990234103,-1207.0,0.00017047,2]
[402929805,1768990234112,-500.0,0.0001705,2]
[402929806,1768990234121,-685.49,0.00017067,2]
[402929807,1768990234130,-501.78111653,0.00017073,2]
[402929808,1768990234139,-500.94467747,0.00017073,2]
[402929809,1768990234149,-167.87587796,0.00017073,2]
[402929810,1768990234158,-500.89562511,0.00017073,2]
[402929811,1768990234167,-501.62278833,0.00017073,2]
[402929812,1768990234176,-225.1354509,0.00017073,2]
[402929813,1768990234185,-502.32372239,0.00017073,2]
[402929814,1768990234194,-500.59297437,0.00017073,2]
[402929815,1768990234203,-500.0,0.00017073,2]
[402929816,1768990234212,-166.23513753,0.00017073,2]
[402929817,1768990234221,-500.82647846,0.00017073,2]
[402929818,1768990234230,-500.70403813,0.00017073,2]
[402929819,1768990234239,-501.73705507,0.00017073,2]
[402929820,1768990234248,-500.6007219,0.00017073,2]
[402929821,1768990234257,-500.0,0.00017073,2]
[402929822,1768990234266,-500.6119985,0.00017073,2]
[402929823,1768990234276,-164.44455647,0.00017073,2]
[402929824,1768990234284,-177.45121096,0.00017073,2]
[402929825,1768990234293,-175.58159846,0.00017073,2]
[402929826,1768990234302,-170.10703562,0.00017073,2]
[402929827,1768990234311,-501.21925322,0.00017073,2]
[402929828,1768990234321,-173.55705579,0.00017073,2]
[402929829,1768990234330,-173.35264112,0.00017073,2]
[402929830,1768990234340,-500.0,0.00017073,2]
[402929831,1768990234349,-501.12504577,0.00017073,2]
[402929832,1768990234359,-500.0,0.00017073,2]
[402929833,1768990234368,-500.0,0.00017073,2]
[402929834,1768990234377,-500.0,0.00017073,2]
[402929835,1768990234386,-500.44081703,0.00017073,2]
[402929836,1768990234395,-162.82594348,0.00017073,2]
[402929837,1768990234404,-500.71668526,0.00017073,2]
[402929838,1768990234413,-500.0,0.00017073,2]
[402929839,1768990234422,-500.58756359,0.00017073,2]
[402929840,1768990234431,-166.57282596,0.00017073,2]
[402929841,1768990234440,-217.33264691,0.00017073,2]
[402929842,1768990234450,-500.47917453,0.00017073,2]
[402929843,1768990234458,-501.80045259,0.00017073,2]
[402929844,1768990234467,-500.24354149,0.00017073,2]
[402929845,1768990234476,-500.0,0.00017073,2]
[402929846,1768990234485,-500.50663341,0.00017073,2]
[402929847,1768990234494,-500.0,0.00017073,2]
[402929848,1768990234503,-500.36019469,0.00017073,2]
[402929849,1768990234513,-166.15547505,0.00017073,2]
[402929850,1768990234523,-169.41492416,0.00017073,2]
[402929851,1768990234532,-500.0,0.00017073,2]
[402929852,1768990234541,-500.0,0.00017073,2]
[402929853,1768990234550,-500.54717654,0.00017073,2]
[402929854,1768990234560,-501.05525398,0.00017073,2]
[402929855,1768990234569,-500.0,0.00017073,2]
[402929856,1768990234578,-500.0,0.00017073,2]
[402929857,1768990234587,-500.67790697,0.00017073,2]
[402929858,1768990234596,-163.65383635,0.00017073,2]
[402929859,1768990234605,-502.57997666,0.00017073,2]
[402929860,1768990234614,-2048.26176511,0.00017073,2]
[402929861,1768990234624,-507.32904147,0.00017073,2]